Cogmind - Beta 15 @@@ ROGUE MODE // 2025.06.02 @ 22:54:44 Player: HSFM Result: Destroyed by YI-UF0 with YI-UF0's Doublenader Performance ------------- Evolutions (0) 0 Regions Visited (2) 400 Robots Destroyed (18) 90 Value Destroyed (302) 302 Prototype IDs (0) 0 Alien Tech Used (0) 0 Bonus (0) 0 TOTAL SCORE: 792 Bonus ------- None Cogmind --------- Core Integrity 0/250 Matter 100/300 Energy 141/250 System Corruption 5% Temperature Cool (0) Movement Walking (125) Location -10/Mines Parts ------- > --- POWER (1) -------- Ion Engine > --- PROPULSION (2) --- Aluminum Leg Titanium Leg > --- UTILITY (2) ------ Small Storage Unit > --- WEAPON (2) ------- Light Cannon > --- INVENTORY (8) ---- Aluminum Leg Aluminum Leg Improved Heat Sink Terrain Scanner Targeting Computer Grenade Launcher Mining Laser Peak State ------------ > --- POWER ------------ Ion Engine > --- PROPULSION ------- Titanium Leg Airjet > --- UTILITY ---------- Small Storage Unit > --- WEAPON ----------- Light Cannon Grenade Launcher > --- INVENTORY -------- Ion Engine Aluminum Leg Aluminum Leg Aluminum Leg Improved Heat Sink Terrain Scanner Targeting Computer Mining Laser [Rating: 11] Favorites ----------- Power Ion Engine Engine Ion Engine Propulsion Aluminum Leg Leg Aluminum Leg Hover Unit Airjet Utility Sensor Array Device Sensor Array Storage Small Storage Unit Weapon Medium Laser Energy Gun Medium Laser Energy Cannon Beam Cannon Ballistic Gun Light Assault Rifle Ballistic Cannon Light Cannon Launcher Grenade Launcher Special Weapon Mining Laser Slashing Weapon Mining Claw Build | -11 -10 -10 ------- Run | Yrd Mat Min Slots Evolved . | . . . Power . | . . . Propulsion . | . . . Utility . | . . . Weapon . | . . . Parts Attached 23 | 7 11 5 Power 4 | 2 1 1 Engine 4 | 2 1 1 Core . | . . . Reactor . | . . . Propulsion 7 | 2 2 3 Treads . | . . . Leg 6 | 2 2 2 Wheel . | . . . Hover 1 | . . 1 Flight . | . . . Utility 4 | 1 3 . Device 3 | 1 2 . Storage 1 | . 1 . Processor . | . . . Hackware . | . . . Protection . | . . . Artifact . | . . . Weapon 8 | 2 5 1 Energy Gun 1 | 1 . . Energy Cannon 1 | . 1 . Ballistic Gun 1 | 1 . . Ballistic Cannon 1 | . 1 . Launcher 2 | . 1 1 Special Weapon 1 | . 1 . Impact Weapon . | . . . Slashing Weapon 1 | . 1 . Piercing Weapon . | . . . Special Melee Weapon . | . . . Unidentified Prototypes . | . . . Corrupted Parts 1 | . . 1 System Corruption 4 | . . 4 Parts Lost 5 | . 3 2 Power 2 | . 1 1 Propulsion . | . . . Utility 1 | . 1 . Weapon 2 | . 1 1 Highest Loss Streak 2 | . 1 2 To Critical Strikes . | . . . Average Backups 5 | 2 5 7 Power 1 | . 1 . Propulsion 2 | 1 2 2 Utility . | . . 3 Weapon . | . 1 1 Tool/Special . | . . . Unused Backups 5 | . 3 2 Power 1 | . 1 . Propulsion 2 | . 2 . Utility 2 | . . 2 Weapon . | . . . Tool/Special . | . . . Average Slot Usage (%) 94 | . 95 85 Engine 13 | . 13 14 Leg 27 | . 27 27 Device 16 | . 19 . Storage 6 | . 4 14 Energy Gun 7 | . 8 . Ballistic Gun 1 | . 1 . Ballistic Cannon 3 | . 2 14 Launcher 6 | . 5 14 Special Weapon 1 | . 1 . Slashing Weapon 7 | . 8 . Peak Build Rating 11 | 6 9 11 Average Rating 7 | 3 7 7 On Entrance 4 | . 6 6 Naked Turns . | . . . Heaviest Build 19 | 9 17 19 Greatest Support 27 | 20 20 27 Greatest Overweight (x) 1 | . . 1 Average Overweight (x) . | . . . Largest Inventory Capacity 8 | 5 8 8 Average Capacity 6 | 5 6 8 Most Carried 8 | 5 8 8 Average Carried 5 | 2 5 7 Final Capacity 8 | 5 8 8 Final Carried 7 | 4 7 7 Class Distribution -------------------- 100% | Mutant Dominant Class ---------------- Mutant | -10/Materials Mutant | -10/Mines Resources | -11 -10 -10 ----------- Run | Yrd Mat Min Matter Collected 397 | 265 132 . Remotely . | . . . Salvage Created 394 | 66 328 . Parts 35 | 5 30 . Haulers Intercepted 1 | . 1 . Recyclers Shooed . | . . . Parts Field Recycled . | . . . Retrieved Matter . | . . . Parts Self-Destructed . | . . . Prevented . | . . . Kills | -11 -10 -10 ------- Run | Yrd Mat Min Combat Hostiles Destroyed 11 | 1 10 . Melee 1 | . 1 . Guns 6 | 1 5 . AOE 4 | . 4 . Classes Destroyed 7 | 2 5 . Worker 2 | 1 1 . Tunneler 1 | . 1 . Hauler 1 | . 1 . Operator 1 | . 1 . Watcher 2 | . 2 . Swarmer 6 | . 6 . Grunt 5 | 1 4 . Best Kill Streak 7 | 1 7 . Combat Bots Only 3 | 1 3 . Max Kills in Single Turn 3 | 1 3 . Gunslinging . | . . . Exploded 1 | . 1 . Melee 1 | . 1 . Uniques/NPCs Destroyed . | . . . Combat | -11 -10 -10 -------- Run | Yrd Mat Min Hostile Shots Fired 114 | 6 98 10 Missed 34 | 1 30 3 Hits 80 | 5 68 7 Projectile 80 | 5 68 7 AOE 9 | . . 9 Critical Strikes 1 | . 1 . Damage Taken 1151 | 55 769 327 Core 262 | 23 183 56 Absorbed by Shields . | . . . Regen/Repaired (Parts) 20 | . 20 . Core Remaining (%) 90 | 90 . . Volleys Fired 68 | 7 58 3 Largest 2 | 2 1 2 Hottest 100 | 70 100 66 Shots Fired 75 | 12 58 5 Gun 49 | 12 37 . Cannon 13 | . 10 3 Launcher 11 | . 9 2 Special 2 | . 2 . Kinetic 18 | 5 10 3 Thermal 46 | 7 39 . Explosive 9 | . 9 . Electromagnetic 2 | . . 2 Robot Hit Streak 9 | 2 9 3 Robot Miss Streak 5 | 1 5 2 Penetration Max . | . . . Secondary Targets . | . . . Shots Hit Robots 39 | 8 28 3 Core Hits 30 | 3 27 . Critical Kills . | . . . Critical Parts Destroyed . | . . . Critical Strikes 6 | . 5 1 Burn 4 | . 4 . Blast 2 | . 1 1 Melee Attacks 15 | . 15 . Impact . | . . . Slashing 15 | . 15 . Piercing . | . . . Sneak Attacks . | . . . Combat Hostiles . | . . . Follow-up Attacks . | . . . Damage Inflicted 1037 | 88 882 67 Guns 325 | 88 237 . Cannons 93 | . 55 38 Explosions 477 | . 448 29 Melee 142 | . 142 . Ramming . | . . . Kinetic 118 | 25 55 38 Thermal 300 | 63 237 . Explosive 448 | . 448 . Electromagnetic 29 | . . 29 Impact . | . . . Slashing 142 | . 142 . Piercing . | . . . Highest Corruption 5 | . 1 5 Average Corruption 1 | . 1 2 Corruption Purged . | . . . Corruption Blocked . | . . . Effects 2 | . . 2 Message Errors 1 | . . 1 Data Loss (minor) 1 | . . 1 Overload Shots . | . . . Overflow Damage 8 | . 8 . Projectiles . | . . . Explosions 6 | . 6 . Melee 2 | . 2 . Knockbacks . | . . . Impact . | . . . Kinetic . | . . . Secondary . | . . . Self-Inflicted Damage 8 | . 8 . Shots 1 | . 1 . Rammed . | . . . Targets Rammed . | . . . Kicked . | . . . Crushed . | . . . Highest Temperature 102 | 102 17 6 Average Temperature 24 | 46 3 3 Received Heat Transfer 384 | 30 354 . Siege Activations . | . . . Martial Activations . | . . . Shielding Activations . | . . . Robots Disrupted . | . . . Combat Hostiles . | . . . Robots Corrupted . | . . . Combat Hostiles . | . . . Parts Fried . | . . . Impact Corruptions . | . . . Robots Melted . | . . . Combat Hostiles . | . . . Parts Melted 2 | . 2 . Heat Transferred 1184 | 185 999 . Parts Sabotaged . | . . . Parts Stolen . | . . . Parts Stripped . | . . . Power Chain Reactions . | . . . Alert | -11 -10 -10 ------- Run | Yrd Mat Min Maximum Alert Level . | . . . Low Security (%) 100 | 100 100 100 Level 1 . | . . . Level 2 . | . . . Level 3 . | . . . Level 4 . | . . . Level 5 . | . . . High Security . | . . . Max Security . | . . . Peak Influence 197 | 20 197 42 Initial 42 | . . 42 Average 41 | 2 50 12 Influence Increases 423 | 25 398 . Destroy 0b10 Robot/C 220 | 20 200 . Destroy 0b10 Robot/NC 35 | 5 30 . Destroy Leader 46 | . 46 . Successful Hack 7 | . 7 . Destroy Structure 55 | . 55 . Lose Combat Pursuer 60 | . 60 . Influence Decreases 423 | 25 289 109 Entered New Map 67 | . . 67 Time Decay 336 | 25 269 42 Lost Part 20 | . 20 . Squads Dispatched 2 | . 2 . Investigation . | . . . Extermination . | . . . Reinforcement 2 | . 2 . Assault . | . . . Garrison . | . . . Intercept . | . . . Searches Triggered . | . . . Construction Impeded . | . . . Haulers Reinforced . | . . . Active Scanning Responses . | . . . Cargo Convoy Interrupts . | . . . Stealth | -11 -10 -10 --------- Run | Yrd Mat Min Distress Signals 1 | . 1 . Communications Jammed . | . . . Distress Signals . | . . . Times Spotted 24 | 1 21 2 Peak Tracking Total 3 | 1 3 1 Tactical Retreats 4 | . 3 1 Traps | -11 -10 -10 ------- Run | Yrd Mat Min Traps Triggered . | . . . Indirectly . | . . . Trap Hack Attempts . | . . . Triggered . | . . . Disarmed . | . . . Reprogrammed . | . . . Reused . | . . . Traps Extracted . | . . . Installed . | . . . Triggered . | . . . Machines | -11 -10 -10 ---------- Run | Yrd Mat Min Machines Disabled . | . . . Max in Single Turn . | . . . Machines Repaired . | . . . Machines Dismantled . | . . . Machines Sabotaged . | . . . Overloaded Fab Kills . | . . . Hacking | -11 -10 -10 --------- Run | Yrd Mat Min Machines Accessed 6 | . 5 1 Terminals 3 | . 3 . Fabricators . | . . . Repair Stations 1 | . 1 . Recycling Units 1 | . 1 . Scanalyzers . | . . . Garrison Access . | . . . Total Hacks 13 | . 12 1 Successful 10 | . 9 1 Failed 3 | . 3 . Catastrophic . | . . . Database Lockouts . | . . . Manual . | . . . Terminals 3 | . 3 . Fabricators . | . . . Repair Stations 5 | . 5 . Recycling Units 4 | . 4 . Scanalyzers . | . . . Garrison Access . | . . . Terminal Hacks 4 | . 3 1 Record 1 | . 1 . Open Door 1 | . . 1 Dispatch Records 1 | . 1 . Zone Layout 1 | . 1 . Fabricator Hacks . | . . . Repair Station Hacks 3 | . 3 . Scan Component 2 | . 2 . Repair 1 | . 1 . Recycling Unit Hacks 3 | . 3 . Recycle Component 1 | . 1 . Process 2 | . 2 . Scanalyzer . | . . . Garrison Access Hacks . | . . . Unauthorized Hacks . | . . . Terminals . | . . . Fabricators . | . . . Repair Stations . | . . . Recycling Units . | . . . Scanalyzers . | . . . Garrison Access . | . . . Data Cores Recovered . | . . . Used . | . . . Hacking Detections 3 | . 3 . Full Trace Events 1 | . 1 . Feedback Events 1 | . 1 . Corruption 1 | . 1 . Feedback Blocked . | . . . Robot Schematics Acquired . | . . . Robots Built . | . . . Authchips . | . . . Time . | . . . Total Robot Build Rating . | . . . Part Schematics Acquired . | . . . Parts Built . | . . . Authchips . | . . . Time . | . . . Total Part Build Rating . | . . . Parts Repaired 1 | . 1 . Time 26 | . 26 . Parts Recycled 1 | . 1 . Recycled Matter 213 | . 213 . Retrieved Matter . | . . . Retrieved Components . | . . . Parts Scanalyzed . | . . . Part Schematics Acquired . | . . . Parts Damaged . | . . . Bothacking | -11 -10 -10 ------------ Run | Yrd Mat Min Used RIF Installer . | . . . Robots Hacked . | . . . Non-combat . | . . . Combat . | . . . Robot Hacks Applied . | . . . Relay Couplers Released . | . . . Fabnet Peak Effective % . | . . . Robots Rewired . | . . . Allies Hacked . | . . . Hacks Repelled . | . . . Allies | -11 -10 -10 -------- Run | Yrd Mat Min Total Allies . | . . . Largest Group . | . . . Highest-Rated Group . | . . . Highest-Rated Ally . | . . . Total Orders . | . . . Ally Attacks . | . . . Total Damage . | . . . Kills . | . . . Allies Corrupted . | . . . Allies Melted . | . . . Intel | -11 -10 -10 ------- Run | Yrd Mat Min Active Infowar (turns) 858 | . 858 . Sensors 858 | . 858 . Robot Analysis Total . | . . . Derelict Logs Recovered . | . . . Drone Launches . | . . . Drone Recoveries . | . . . Exploration | -11 -10 -10 ------------- Run | Yrd Mat Min Turns Passed 1436 | 125 1143 168 Spaces Moved 789 | 85 580 124 Core 17 | 17 . . Treads . | . . . Legs 770 | 68 580 122 Wheels . | . . . Hover 2 | . . 2 Flight . | . . . Fastest Speed 50 | 50 120 120 Average Speed 118 | 106 120 121 Slowest Speed 125 | 120 120 125 Overloaded Moves . | . . . Propulsion Burnouts . | . . . Robots Hopped . | . . . Potential Cave-ins . | . . . Cave-ins Triggered . | . . . Exploration Rate (%) 36 | 7 68 34 Regions Visited 2 Branch Regions 1 Pre-discovered Areas . | . . . Known Exits Taken . | . . . Unknown Exits Taken 2 | 1 1 . Scrap Searched . | . . . Spaces Dug 25 | . 25 . Terrain Destroyed 57 | . 57 . Melee 6 | . 6 . Projectile 1 | . 1 . AOE 50 | . 50 . Terrain Rammed . | . . . Walls Destroyed . | . . . Machines Disabled . | . . . Actions | -11 -10 -10 --------- Run | Yrd Mat Min Total 1180 | 108 936 136 Wait 243 | . 243 . Move 787 | 84 579 124 Hop . | . . . Pick Up 28 | 10 16 2 Fast Attach 4 | . 3 1 Attach 13 | 6 5 2 Detach . | . . . Swap 9 | 1 6 2 Drop 13 | . 11 2 Fire 68 | 7 58 3 Melee 15 | . 15 . Ram . | . . . Kick . | . . . Crush . | . . . Escape Stasis . | . . . Rewire . | . . . Trap . | . . . Miscellaneous . | . . . Route ------- -11/Scrapyard -10/Materials (discovered 4 exits: [*Mat x2] / *Min x2) -10/Mines (discovered 1 exit: [*Mat]) History --------- Turn | Location | Event 2 | -11/Scrapyard | Met Revision 17 81 | -11/Scrapyard | Discovered new exit (range 8) 126 | -11/Scrapyard | Entered Materials 194 | -10/Materials | Repaired Aluminum Leg 211 | -10/Materials | Discovered new exit (range 8) 306 | -10/Materials | Build established: Mutant 611 | -10/Materials | Discovered new exit (range 16) 832 | -10/Materials | Core integrity fell below 50% 1039 | -10/Materials | Discovered new exit (range 13) 1102 | -10/Materials | Discovered new exit (range 11) 1269 | -10/Materials | Core integrity fell below 20% 1269 | -10/Materials | Entered Mines 1374 | -10/Mines | Met a Derelict who couldn't figure out how to use a Trap Extractor 1432 | -10/Mines | Discovered new exit (range 9) 1437 | -10/Mines | Destroyed by YI-UF0 with YI-UF0's Doublenader Last Messages --------------- Ion Engine destroyed. T-07 Excavator destroyed. XMR&YT%T6VZMOI TS/%4BO0= The unstable cave ceiling collapses. To regain energy, simply wait via the mouse wheel, '.', or KP5. Also make sure your per-turn energy generation is a net positive, and consider deactivating power-draining parts if not. YI-UF0 mumbles something. The unstable cave ceiling collapses. YI-UF0 mumbles something. The unstable cave ceiling collapses. EXIT=FOUND YI-UF0: "BOOSH!" K-01 Serf destroyed. YI-UF0 Adv. Heat Sink blasted off. YI-UF0 mumbles something. Shock Bomb Launcher destroyed. YI-UF0: "WHAAM!" U-05 Engineer destroyed. The unstable cave ceiling collapses. Map ----- +----------------------------------------------------+ | ?????????????????????????????????????????????????? | | ?????????????????????????????????????????????????? | | ?????????????????????????????????????????????????? | | ?????????????????????????????????????????????????? | | ?????????????????????????????????????????????????? | | ?????????????????????????????????????????????????? | | ?????????????????????????????????????????????????? | | ########?????????????????????????????????????????? | | #?????????????????????????????????????????? | | ###### #?????????????????????????????????????????? | | ?????# #?????????????????????????????????????????? | | ?????# #???????????????????? %???????????????????? | | ?????# ###?????????????????? ????????????????????? | | ?????# #?????????????????# ???????????????????? | | ?????### #???????????????? ????????????????????? | | ?????### #??????????????? ????????????????????? | | ????## ##??????????#### ##???????????????????? | | #??## #??######### # #???????????????????? | | ### #?## ## ?########???????????? | | ##?# ## # "???????????? | | ##?## ## # ""??????????? | | #??# = ""?????????? | | #### * *!% ?????????? | | # ## % ! %=<= ????????? | | ##### # ! ????????? | | ????## # # #!g @ ????????? | | ?###### * # # #???????????? | | ?# # ### #??????????? | | ?## [ = # ## ## # ## #??????????? | | ??# = # ## ### ##??#??###?????????????? | | ??# =! ### ### #??????????????????????? | | ??# = [# ## #??????????????????????? | | ??# !# # ## #??????????????????????? | | ??##### ### #######??????????????????????? | | ??????## #?####????????????????????????????? | | ???????## ##?????????????????????????????????? | | ????????#######??????????????????????????????????? | | ?????????????????????????????????????????????????? | | ?????????????????????????????????????????????????? | | | | | | | | | | | | | | | | | | | | | | | +----------------------------------------------------+ Best States ------------- Heat Dissipation 39 Energy Generation 10 Energy Capacity 250 Matter Stores 300 Matter Capacity 300 Sight Range 16 Robot Scan Range 14 Terrain Scan Density 10 Evasion (%) 55 Item Schematics ----------------- None Robot Schematics ------------------ None Fabricated ------------ Nothing Repaired ---------- Aluminum Leg | 77% | -10/Materials Alien Tech Used ----------------- None Achievements -------------- Loot Pinata Part-time Mechanic Challenges ------------ None Game ------ Seed WeaponPropulsionSuit Manual? 0 Play Time 00:32:21 Cumulative 1.6 hours Start 2025.06.02 @ 22:11:25 End 2025.06.02 @ 22:54:44 Sessions 1 Manual Loads 0 Difficulty Rogue Special Mode None Game No. 2 Rogue 2 Adventurer 0 Explorer 0 Win Type - Total 0 Types 0/0/0/0/0/0/0/0/0/0 Lore% 0 Gallery% 2 Achievement% 3 Wizard Run 0 Options --------- Layout 0 ASCII 0 Keyboard 0 Movement Mouse Keybinds 0 Fullscreen 1 Font 18/SmallcapsGlow Map View 76x50 Zoom Use 0% Tactical HUD 0 Map Filters NONE Filters NONE Steam 1 RUN: 01d68f75-661c-4b42-9935-d3fc8be7bc71